bitfinex/quotes_ETHUSD_20241119
["timestamp","ask_amount","ask_price","bid_price","bid_amount"]
[1732016826835,0.8002,3123.7,3123.4,3.20158]
[1732016827379,0.8002,3123.7,3123.3,3.20172]
[1732016827897,0.8002,3123.7,3122.8,0.7504]
[1732016828113,0.8002,3123.7,3123.2,3.20183]
[1732016828319,0.8002,3123.7,3122.8,0.7504]
[1732016828320,3.20157,3123.5,3123.0,3.20197]
[1732016828548,3.20157,3123.5,3122.9,3.20215]
[1732016828549,0.400143,3123.6,3122.8,0.7504]
[1732016828987,0.400143,3123.6,3123.0,3.20202]
[1732016829184,0.400143,3123.6,3123.1,3.20184]
[1732016829501,0.400143,3123.6,3123.2,3.20181]
[1732016829703,0.8002,3123.7,3122.9,3.20215]
[1732016829905,0.7788,3124.2,3124.0,3.20094]
[1732016830212,0.7788,3124.2,3124.1,3.20092]
[1732016830389,3.20043,3124.6,3124.1,3.20092]
[1732016830714,0.320043,3124.5,3124.1,3.20092]
[1732016830921,0.320043,3124.5,3123.9,3.20104]
[1732016831080,3.20067,3124.4,3123.9,3.20104]
[1732016831614,0.7997,3124.3,3123.7,3.20127]
[1732016831818,1.1517713,3124.3,3124.0,3.20097]
[1732016832344,0.7997,3124.6,3124.1,3.20087]
[1732016832753,0.7997,3124.6,3124.1,3.20086]
[1732016833207,0.7997,3124.6,3124.3,3.20069]
[1732016833407,1.51972,3124.6,3124.1,3.20083]
[1732016833647,4.72015,3124.6,3124.1,3.20091]
[1732016833862,0.472015,3124.5,3124.2,3.20078]
[1732016834022,1.51972,3124.6,3124.2,3.20078]
[1732016834202,1.51972,3124.6,3123.6,6.96]
[1732016834407,3.20077,3124.3,3123.8,0.64036869]
[1732016834648,0.7565,3124.2,3123.8,0.64036869]
[1732016834818,3.95733,3124.2,3123.8,0.64036869]
[1732016835023,0.7565,3124.2,3123.8,3.2012]
[1732016835227,0.7565,3124.2,3123.9,3.20107]
[1732016835409,0.7565,3124.2,3123.8,3.2012]
[1732016835615,0.7565,3124.2,3124.0,3.20099]
[1732016835931,0.7565,3124.2,3123.8,6.40236]
[1732016836252,0.7565,3124.2,3123.8,3.20118]
[1732016836418,0.7565,3124.2,3123.6,3.20138]
[1732016836419,4.353107,3124.2,3123.6,3.20138]
[1732016836628,4.353107,3124.2,3123.6,3.83035468]
[1732016837148,3.20074,3124.3,3123.7,0.8047]
[1732016837455,0.7535,3124.3,3123.8,3.20115]
[1732016838048,0.7535,3124.3,3123.9,3.20112]
[1732016838252,0.7535,3124.3,3123.9,3.20108]
[1732016838418,0.7535,3124.3,3123.8,3.20115]
[1732016839145,3.95421,3124.3,3123.7,0.8047]
[1732016839349,0.395412,3124.2,3123.8,3.20122]
[1732016839521,0.7535,3124.3,3123.9,3.20107]
[1732016839938,3.20047,3124.6,3124.0,3.20095]
[1732016840121,0.8193,3124.6,3124.0,3.20094]
[1732016840322,0.8193,3124.6,3124.1,3.20084]
[1732016840659,0.8193,3124.6,3124.3,3.2007]
[1732016840865,0.8193,3124.9,3124.4,3.20054]
[1732016841166,4.339433,3124.9,3124.3,4.3393]
[1732016841367,4.01943,3124.9,3124.4,3.2006]
[1732016841925,3.20022,3124.8,3124.3,4.01969]
[1732016842224,3.20031,3124.7,3124.2,3.20079]
[1732016843266,3.20031,3124.7,3124.1,4.01985]
[1732016843472,4.421373,3124.9,3124.1,4.01985]
[1732016843473,3.20042,3124.6,3124.1,4.01985]
[1732016843624,0.4421373,3124.8,3124.1,0.819]
[1732016843826,3.20036,3124.7,3124.2,3.2008]
[1732016844569,3.20074,3124.3,3123.8,4.03236]
[1732016844878,3.20098,3124.1,3123.5,3.0]
[1732016845028,0.7901,3124.2,3123.3,0.8312]
[1732016845224,3.99148,3123.7,3122.6,4.03362]
[1732016845453,3.99148,3123.7,3123.1,6.40376]
[1732016845652,3.99148,3123.7,3122.9,3.20211]
[1732016845965,7.19288,3123.7,3123.1,3.20187]
[1732016846137,3.20156,3123.5,3123.0,3.20203]
[1732016846345,3.20143,3123.6,3123.1,3.84726233]
[1732016846961,3.99143,3123.7,3123.2,3.20181]
[1732016847161,0.7901,3123.7,3123.1,3.84721233]
[1732016847363,3.20144,3123.6,3123.1,3.84721233]
[1732016847737,0.7901,3123.7,3123.4,3.2016]
[1732016847944,0.7901,3123.7,3123.3,3.20167]
[1732016850433,0.7901,3123.7,3123.4,3.20163]
[1732016850656,0.7664,3124.0,3123.2,0.75]
[1732016850858,0.7664,3124.2,3123.9,3.20106]
[1732016851127,0.7664,3124.2,3123.8,3.20121]
[1732016851275,3.96722,3124.2,3123.7,3.20123]
[1732016851773,3.96722,3124.2,3123.5,3.2015]
[1732016851774,4.684019,3124.2,3123.5,3.2015]
[1732016851941,3.20094,3124.1,3123.6,3.20137]
[1732016852738,3.96722,3124.2,3123.2,0.75]
[1732016852987,3.20102,3124.0,3123.4,3.20154]
[1732016853179,3.20102,3124.0,3123.5,3.20146]
[1732016853474,3.96727,3124.2,3123.4,3.20154]
[1732016853786,3.20113,3123.9,3123.4,3.20154]
[1732016854278,0.7512,3123.8,3123.2,3.20176]
[1732016854435,3.596613,3123.7,3123.2,3.20176]
[1732016854634,3.596613,3123.7,3123.1,0.64532233]
[1732016854635,3.20152,3123.6,3123.1,0.64532233]
[1732016855258,3.20152,3123.6,3123.1,3.84723233]
[1732016855461,3.20157,3123.5,3123.1,0.64532233]
[1732016855660,3.596613,3123.7,3123.1,0.64532233]
[1732016855979,3.2016,3123.5,3123.1,0.64532233]
[1732016856983,3.596573,3123.7,3123.1,0.64532233]
[1732016856984,3.20144,3123.6,3123.1,3.84726233]
[1732016858370,3.20165,3123.4,3123.1,0.64532233]
[1732016858608,3.20161,3123.5,3122.9,4.03499]
[1732016859652,3.20161,3123.5,3123.0,3.20202]
[1732016860477,3.20161,3123.5,3123.0,6.40401]
[1732016860657,0.395264,3123.6,3123.1,3.20194]
[1732016860863,3.2014,3123.7,3123.1,3.20194]
[1732016861348,0.7512,3123.8,3122.9,4.035]
[1732016861571,0.7512,3123.8,3123.3,3.20168]
[1732016861786,3.95243,3123.8,3123.3,3.20168]
[1732016861949,3.20133,3123.7,3123.3,3.20168]
[1732016862400,6.40274,3123.7,3123.1,3.20194]
[1732016862577,3.20133,3123.7,3123.1,3.20194]
[1732016863414,3.20133,3123.7,3123.1,3.20188]
[1732016863705,3.20133,3123.7,3123.0,0.44640921]
[1732016863706,3.20153,3123.5,3123.0,0.44640921]
[1732016863910,3.20153,3123.5,3122.9,4.03496]
[1732016864209,3.20153,3123.5,3123.0,3.20201]
[1732016864560,3.20137,3123.7,3122.9,4.03496]
[1732016864807,3.20149,3123.6,3123.0,3.20198]
[1732016864976,3.20149,3123.6,3123.1,3.20192]
[1732016865601,3.2011,3124.0,3123.2,3.7732]
[1732016865763,3.20097,3124.1,3123.5,3.20147]
[1732016865966,3.60460458,3124.1,3123.5,3.20147]
[1732016866265,3.60460458,3124.1,3123.4,3.20154]
[1732016866266,3.20114,3123.9,3123.4,3.20154]
[1732016867608,3.95811,3123.8,3123.2,3.97498]
[1732016867780,3.95811,3123.8,3123.2,3.20178]
[1732016868304,3.2014,3123.7,3123.2,3.20178]
[1732016872235,3.2015,3123.6,3123.0,7.15795]
[1732016872387,3.2015,3123.6,3123.0,3.95597]
[1732016872747,3.2015,3123.6,3123.1,3.20188]
[1732016873032,3.20153,3123.5,3122.9,3.20208]
[1732016873234,0.8125,3123.4,3122.9,3.20208]
[1732016873405,3.20185,3123.2,3122.8,0.63119211]
[1732016874595,0.7988,3123.1,3122.8,0.63119211]
[1732016874819,4.00082,3123.1,3122.8,0.63119211]
[1732016875916,4.506367,3123.1,3122.8,0.63119211]
[1732016877435,1.304347,3123.1,3122.8,0.63119211]
[1732016877638,1.304347,3123.1,3122.8,3.83343211]
[1732016877639,0.7988,3123.1,3122.8,3.83343211]
[1732016877837,0.7831,3123.3,3122.9,4.02135]
[1732016878355,0.7831,3123.3,3122.9,0.8192]
[1732016878651,3.20119,3123.9,3123.3,3.20164]
[1732016878951,3.98429,3123.9,3123.4,3.2016]
[1732016879251,4.702816,3123.9,3123.4,3.2016]
[1732016879419,4.702816,3123.9,3123.3,3.20164]
[1732016879420,1.501626,3123.9,3123.3,3.20164]
[1732016879761,0.7831,3123.9,3123.6,3.20143]
[1732016880406,0.7831,3123.9,3123.5,3.20147]
[1732016880407,0.7831,3123.9,3123.7,3.20132]
[1732016880605,0.8087,3124.1,3123.7,3.20132]
[1732016880853,1.448855,3124.1,3123.7,3.20132]
[1732016881336,1.448855,3124.1,3123.5,3.20147]
[1732016881539,4.649795,3124.1,3123.6,3.20141]
[1732016883127,0.8087,3124.1,3123.8,3.20117]
[1732016883329,0.8087,3124.1,3123.9,3.20112]
[1732016883651,3.95731,3124.4,3123.9,3.20112]
[1732016883963,0.715788,3124.3,3123.9,3.20112]
[1732016884173,0.7567,3124.4,3124.0,3.20096]
[1732016885023,0.7567,3124.4,3124.1,3.2009]
[1732016885227,0.7567,3124.4,3123.9,3.96202]
[1732016885425,0.7567,3124.4,3124.0,3.20097]
[1732016885624,3.95731,3124.4,3124.0,3.20097]
[1732016886231,0.7567,3124.4,3124.0,3.20097]
[1732016886582,0.7567,3124.4,3124.0,3.20093]
[1732016887371,0.7567,3124.4,3124.1,3.20091]
[1732016887750,0.7567,3124.4,3124.3,3.20071]
[1732016887953,0.7844,3124.7,3124.3,3.2007]
[1732016888265,1.07203238,3124.7,3124.3,3.20067]
[1732016888470,1.07203238,3124.7,3124.4,3.20055]
[1732016888471,0.7844,3124.7,3124.4,3.20055]
[1732016889672,0.7844,3124.7,3124.3,3.20062]
[1732016889871,0.7844,3124.7,3124.2,3.20076]
[1732016890160,0.7844,3124.7,3124.2,3.20073]
[1732016890647,0.7844,3124.7,3124.2,6.40148]
[1732016890828,0.7844,3124.7,3124.2,3.20073]
[1732016893755,0.7844,3124.7,3124.2,6.40148]
[1732016894376,0.7844,3124.7,3124.2,3.20073]
[1732016894843,0.7844,3124.7,3124.3,3.2007]
[1732016896747,3.98473,3124.7,3124.2,3.2008]
[1732016897260,3.98473,3124.7,3124.2,3.20081]
[1732016897885,0.7844,3124.7,3124.2,3.20081]
[1732016898505,0.7844,3124.7,3124.3,3.2007]
[1732016898789,0.7844,3124.7,3124.4,3.20054]
[1732016899148,0.7844,3124.7,3124.4,3.20056]
[1732016899368,0.7844,3124.7,3124.3,3.20069]
[1732016900487,0.7844,3124.7,3124.1,3.20088]
[1732016900691,3.98471,3124.7,3124.2,3.20081]
[1732016900990,0.7844,3124.7,3124.4,3.2006]
[1732016901849,0.7774,3124.9,3124.7,3.20029]
[1732016902453,0.7774,3124.9,3124.3,0.7695]
[1732016902454,0.7774,3124.9,3124.6,3.2004]
[1732016902669,0.7774,3124.9,3124.4,3.20055]
[1732016902849,0.7774,3124.9,3124.5,3.20042]
[1732016903247,0.7774,3124.9,3124.6,3.20035]
[1732016903576,0.7774,3124.9,3124.5,3.20042]
[1732016903785,0.7774,3124.9,3124.5,6.40086]
[1732016904153,0.7774,3124.9,3124.5,6.40087]
[1732016904356,0.7774,3124.9,3124.5,3.20043]
[1732016907657,0.7774,3124.9,3124.6,3.20039]
[1732016907992,0.7774,3124.9,3124.7,3.20026]
[1732016908295,0.7774,3125.1,3124.7,3.20026]
[1732016909495,0.7774,3125.1,3124.6,3.20035]
[1732016909699,0.7774,3125.1,3124.6,3.2004]
[1732016909852,3.97732,3125.1,3124.6,3.2004]
[1732016910196,3.2,3125.0,3124.6,3.2004]
[1732016910354,0.7774,3125.1,3124.1,3.20085]
[1732016910355,0.773,3124.5,3124.1,3.20085]
[1732016910552,0.773,3124.5,3124.2,3.20081]
[1732016910797,0.773,3124.5,3124.1,3.20085]
[1732016911363,0.773,3124.5,3124.1,6.40171]
[1732016912133,0.773,3124.5,3124.1,3.20085]
[1732016913048,0.773,3124.5,3123.9,3.20105]
[1732016913246,0.773,3124.5,3123.9,6.40212]
[1732016913247,3.97357,3124.5,3123.9,6.40212]
[1732016913450,3.97357,3124.5,3123.9,3.20105]
[1732016913654,3.97357,3124.5,3123.9,7.04458105]
[1732016914125,3.97357,3124.5,3123.9,3.84352105]
[1732016914326,3.97357,3124.5,3124.0,3.20101]
[1732016914700,0.773,3124.5,3124.3,3.20071]
[1732016914905,0.8144,3124.7,3124.3,3.20071]
[1732016916458,0.8144,3124.7,3124.3,3.20071]
[1732016916643,0.8144,3124.7,3124.3,3.20068]
[1732016917872,0.8144,3124.7,3124.5,3.2005]
[1732016918019,0.8118,3124.9,3124.5,3.2005]
[1732016921830,0.8118,3124.9,3124.5,6.401]
[1732016922234,0.8118,3124.9,3124.6,3.20039]
[1732016922744,3.1999,3125.1,3124.6,3.20039]
[1732016922948,3.1999,3125.1,3124.5,3.2005]
[1732016923161,3.1999,3125.1,3124.6,3.2004]
[1732016924041,0.7595,3125.2,3124.8,3.20014]
[1732016924360,0.7595,3125.2,3124.9,0.320014]
[1732016924557,0.7595,3125.2,3124.8,3.20014]
[1732016924776,3.19949,3125.5,3124.9,3.20008]
[1732016924948,0.761,3125.4,3124.9,3.20008]
[1732016925148,3.9606,3125.4,3124.9,3.20008]
[1732016929132,1.32700688,3125.3,3124.9,3.20008]
[1732016929578,3.19979,3125.2,3124.7,3.98621]
[1732016932787,1.32700688,3125.3,3124.7,3.98621]
[1732016932788,3.19969,3125.3,3124.7,3.98621]
[1732016933086,3.96065,3125.4,3125.0,3.19999]
[1732016933473,3.19965,3125.4,3125.0,3.19999]
[1732016933657,3.19965,3125.4,3125.1,0.319999]
[1732016934059,0.78258849,3125.9,3125.3,3.19963]
[1732016934254,0.78258849,3125.9,3125.6,0.7922]
[1732016934571,0.1437317,3125.9,3125.7,0.399159]
[1732016934889,0.1437317,3125.9,3125.6,3.99158]
[1732016937107,0.1437317,3125.9,3125.6,0.7922]
[1732016937393,3.3428717,3125.9,3125.6,0.7922]
[1732016937593,0.1437317,3125.9,3125.6,0.7922]
[1732016939492,0.1437317,3125.9,3125.7,0.64551635]
[1732016939708,4.1628117,3125.9,3125.7,0.64551635]
[1732016940001,3.19933,3125.7,3125.1,3.9722]
[1732016940201,3.19933,3125.7,3125.2,0.39722]
[1732016940404,3.19933,3125.7,3125.2,3.59699]
[1732016940706,3.19933,3125.7,3125.2,4.23393104]
[1732016940900,3.19945,3125.6,3125.2,1.03416104]
[1732016941083,3.19945,3125.6,3125.2,0.39722]
[1732016942273,3.19944,3125.6,3125.2,0.39722]
[1732016943302,3.19944,3125.6,3125.3,0.1820207]
[1732016944555,6.39889,3125.6,3125.3,0.1820207]
[1732016945120,3.19951,3125.5,3125.1,1.42298698]
[1732016946411,3.19959,3125.4,3125.1,1.42298698]
[1732016946609,0.7623,3125.8,3125.1,0.65058698]
[1732016946813,3.20014,3124.9,3124.4,4.03204]
[1732016947317,3.20014,3124.9,3124.5,0.403204]
[1732016947697,3.20023,3124.8,3124.4,0.8315]
[1732016947898,3.20023,3124.8,3124.4,3.8315]
[1732016948106,3.20012,3124.9,3124.4,7.03208]
[1732016948850,3.20012,3124.9,3124.6,0.62620956]
[1732016950323,3.2003,3124.7,3124.6,0.62620956]
[1732016950624,3.20012,3124.9,3124.4,0.8315]
[1732016950838,3.20027,3124.8,3124.4,0.8315]
[1732016951587,3.20027,3124.8,3124.5,0.6308799]
[1732016951987,3.20032,3124.7,3124.5,0.6308799]
[1732016953304,3.2004,3124.6,3124.5,0.6308799]
[1732016953954,3.20051,3124.5,3124.4,0.8315]
[1732016954105,3.20051,3124.5,3124.1,3.0]
[1732016954106,3.20069,3124.4,3124.3,0.64072288]
[1732016954307,3.99796,3124.3,3123.9,0.8094]
[1732016954535,3.20055,3124.5,3124.0,0.63553925]
[1732016954708,3.9977,3124.6,3124.0,3.83654925]
[1732016954908,3.99719,3125.1,3124.2,0.8094]
[1732016955141,3.20017,3124.9,3124.2,1.00035442]
[1732016955347,3.99716,3125.1,3124.3,3.2007]
[1732016955642,3.99716,3125.1,3124.5,3.20043]
[1732016955806,3.19972,3125.3,3124.6,0.7774]
[1732016956149,3.19998,3125.1,3124.6,0.7774]
[1732016956315,3.19997,3125.1,3124.6,0.7774]
[1732016956528,3.19997,3125.1,3124.6,1.21719354]
[1732016956925,6.39967,3125.2,3124.6,4.41754354]
[1732016957203,3.19979,3125.2,3124.6,4.41754354]
[1732016958109,3.20016,3124.9,3124.4,0.63438733]
[1732016958325,3.20016,3124.9,3124.4,1.03452733]
[1732016958527,3.20016,3124.9,3124.4,4.23506733]
[1732016959306,3.19972,3125.3,3124.7,3.20025]
[1732016959505,3.19972,3125.3,3124.8,0.320025]
[1732016959832,3.19972,3125.3,3124.8,3.520225]
[1732016960035,0.7798,3125.6,3124.8,3.520225]
[1732016960036,3.97925,3125.6,3124.9,3.20002]
[1732016960247,3.19955,3125.5,3125.0,0.7717]
[1732016960540,3.97925,3125.6,3125.0,0.7717]
[1732016960541,3.1996,3125.4,3125.0,0.7717]
[1732016960746,3.19969,3125.3,3125.0,0.7717]
[1732016961099,0.7798,3125.6,3125.0,0.7717]
[1732016961100,3.19955,3125.5,3125.0,0.7717]
[1732016961343,3.19935,3125.7,3125.1,6.39973]
[1732016961528,3.19935,3125.7,3125.2,0.49489123]
[1732016961732,3.19935,3125.7,3125.2,3.69468123]
[1732016963812,3.19956,3125.5,3125.0,0.7717]
[1732016964736,3.19956,3125.5,3124.6,3.20036]
[1732016964737,3.1999,3125.1,3124.7,1.44862528]
[1732016966239,3.19979,3125.2,3124.7,4.64889528]
[1732016966410,3.19979,3125.2,3124.8,0.57104523]
[1732016966838,3.1999,3125.1,3124.8,0.57104523]
[1732016967037,0.8178,3125.5,3124.7,1.44862528]
[1732016967038,3.19979,3125.3,3124.7,1.44862528]
[1732016967357,3.19999,3125.1,3124.5,0.8114]
[1732016967513,3.19999,3125.1,3124.6,6.40067]
[1732016967714,3.19999,3125.1,3124.6,6.40066]
[1732016967915,3.19974,3125.3,3124.7,3.20028]
[1732016968651,3.19951,3125.5,3124.9,3.20001]
[1732016968855,3.19932,3125.7,3125.1,0.8114]
[1732016969013,3.3428617,3125.9,3125.3,3.19967]
[1732016969350,3.3428617,3125.9,3125.5,0.8114]
[1732016969562,0.1437317,3125.9,3125.5,4.01087]
[1732016969724,0.1437317,3125.9,3125.5,1.212487]
[1732016969930,0.1437317,3125.9,3125.6,3.19934]
[1732016970141,0.1437317,3125.9,3125.5,4.01078]
[1732016970466,0.1437317,3125.9,3125.7,3.19922]
[1732016970670,0.1437317,3125.9,3125.8,3.19918]
[1732016970870,0.1437317,3125.9,3125.8,3.98968]
[1732016971879,0.1437317,3125.9,3125.8,4.53968]
[1732016972654,0.1437317,3125.9,3125.8,0.7905]
[1732016972872,0.1437317,3125.9,3125.8,3.98968]
[1732016977191,0.1437317,3125.9,3125.8,0.7905]
[1732016977390,0.1437317,3125.9,3125.6,1.44139275]
[1732016977600,0.1437317,3125.9,3125.6,5.06625167]
[1732016977801,0.1437317,3125.9,3125.8,3.19918]
[1732016979283,0.1437317,3125.9,3125.8,4.54638]
[1732016980604,0.1904,3126.9,3126.6,3.19827]
[1732016980896,0.1904,3126.9,3126.7,0.7972]
[1732016981053,3.38852,3126.9,3126.4,3.99575]
[1732016981259,0.1904,3126.9,3126.4,4.43319323]
[1732016981461,0.1904,3126.9,3126.6,3.19832]
[1732016981993,0.1904,3126.9,3126.8,0.63665295]
[1732016982492,3.38845,3126.9,3126.8,0.63665295]
[1732016982718,3.38845,3126.9,3126.4,0.7972]
[1732016982719,3.19819,3126.8,3126.4,0.7972]
[1732016982919,3.19819,3126.8,3126.3,3.0]
[1732016982920,6.39643,3126.8,3126.3,3.0]
[1732016983118,6.39643,3126.8,3125.8,0.55]
[1732016983119,3.19826,3126.7,3126.6,0.62737696]
[1732016983426,3.19826,3126.7,3125.9,0.7972]
[1732016983427,3.19836,3126.6,3125.9,0.7972]
[1732016983621,3.19903,3126.0,3125.6,0.7972]
[1732016983793,0.8114,3126.1,3125.6,0.7972]
[1732016983997,3.19898,3126.0,3125.7,0.6293601]
[1732016984783,3.19868,3126.3,3125.8,3.1991]
[1732016985010,3.19878,3126.2,3125.9,0.38284601]
[1732016985338,3.19858,3126.4,3125.7,3.8286301]
[1732016985624,3.19873,3126.3,3125.8,0.46258301]
[1732016985988,3.19873,3126.3,3125.8,3.66169301]
[1732016986625,3.19873,3126.3,3125.8,0.46258301]
[1732016986830,3.19846,3126.5,3125.7,0.6293601]
[1732016986997,3.11305268,3127.0,3125.3,0.8079]
[1732016986998,3.19922,3125.8,3125.3,0.8079]
[1732016987210,3.19922,3125.8,3125.5,0.63855301]
[1732016987509,3.19922,3125.8,3125.5,1.10316131]
[1732016987683,3.19902,3126.0,3125.5,1.10316131]
[1732016987891,3.19919,3125.8,3125.5,0.63855301]
[1732016988085,3.19929,3125.7,3125.5,0.63855301]
[1732016988283,0.7678,3126.1,3125.3,0.8079]
[1732016988596,3.19952,3125.5,3125.4,0.63919259]
[1732016988797,3.99618,3125.8,3125.4,0.63919259]
[1732016989409,3.1991,3125.9,3125.4,1.47059259]
[1732016989681,3.1991,3125.9,3125.4,4.67012259]
[1732016989928,3.19919,3125.8,3125.4,1.47059259]
[1732016990111,3.1991,3125.9,3125.4,1.47059259]
[1732016990495,3.1991,3125.9,3125.4,1.93762285]
[1732016991395,6.39827,3125.9,3125.4,1.93762285]
[1732016991602,3.19921,3125.8,3125.4,1.93762285]
[1732016991799,3.21816,3126.8,3125.8,3.19915]
[1732016991800,0.8283,3126.8,3125.8,3.19915]
[1732016991986,3.19865,3126.4,3125.8,3.19915]
[1732016992610,3.1984,3126.6,3125.8,3.19915]
[1732016992611,3.1984,3126.6,3125.9,3.19897]
[1732016992998,3.19852,3126.5,3126.0,0.7501]
[1732016993897,3.19857,3126.4,3126.0,0.7501]
[1732016994135,3.19873,3126.3,3125.7,3.19926]
[1732016994289,1.0129,3126.9,3126.2,3.1987]
[1732016994625,1.0129,3126.9,3126.4,3.19854]
[1732016994626,4.21098,3126.9,3126.4,3.19854]
[1732016994833,1.0129,3126.9,3126.4,3.19854]
[1732016995215,1.0129,3126.9,3126.5,3.19845]
[1732016995420,0.1904,3126.9,3126.5,3.19845]
[1732016997902,3.3885,3126.9,3126.4,0.8237]
[1732016998103,3.1983,3126.7,3126.3,0.64017863]
[1732016998566,0.7675,3126.5,3126.0,3.19889]
[1732016998700,0.7675,3126.5,3126.0,3.599039]
[1732016999144,3.96601,3126.5,3126.0,0.400149]
[1732016999346,3.96601,3126.5,3125.9,0.8026]
[1732016999557,3.19867,3126.3,3126.1,0.6276263]
[1732016999702,3.96601,3126.5,3126.1,0.6276263]
[1732016999902,0.7675,3126.5,3126.1,3.8264863]
[1732017000319,3.19841,3126.6,3126.1,0.6276263]
[1732017001035,0.1904,3126.9,3126.4,0.7707]
[1732017001259,0.1904,3126.9,3126.8,3.19815]
[1732017001563,0.1904,3126.9,3126.8,0.8219]
[1732017001863,0.1904,3126.9,3126.5,0.48819351]
[1732017001864,0.1904,3126.9,3126.6,3.19829]
[1732017002356,0.1904,3126.9,3126.7,3.19825]
[1732017002651,0.1904,3126.9,3126.8,3.19815]
[1732017002950,0.1904,3126.9,3126.6,3.19831]
[1732017002951,0.1904,3126.9,3126.7,3.19818]
[1732017003323,0.1904,3126.9,3126.8,3.19815]
[1732017003518,0.1904,3126.9,3126.6,3.19828]
[1732017003964,0.1904,3126.9,3126.5,4.02035]
[1732017004245,0.1904,3126.9,3126.5,0.8219]
[1732017004455,0.1904,3126.9,3126.4,0.55]
[1732017004606,0.1904,3126.9,3126.8,3.19815]
[1732017004809,0.1904,3126.9,3126.8,4.280565]
[1732017005657,0.1904,3126.9,3126.8,1.082415]
[1732017006420,0.1904,3126.9,3126.8,4.280565]
[1732017007553,0.1904,3126.9,3126.8,3.517965]
[1732017007937,0.1904,3126.9,3126.8,0.319815]
[1732017008550,0.1904,3126.9,3126.8,3.517965]
[1732017008755,0.1904,3126.9,3126.8,0.319815]
[1732017009080,0.1904,3126.9,3126.6,0.63852035]
[1732017009279,0.7949,3126.7,3126.2,3.19874]
[1732017009444,0.7949,3126.7,3126.3,0.65246929]
[1732017011578,0.7949,3126.7,3126.4,3.19854]
[1732017012367,0.9853,3126.9,3126.4,3.19854]
[1732017012571,3.19816,3126.8,3126.3,0.65246929]
[1732017012890,3.19816,3126.8,3126.4,0.38511893]
[1732017013470,3.19831,3126.7,3126.4,0.38511893]
[1732017014396,4.18341,3126.9,3126.4,0.38511893]
[1732017014561,3.19816,3126.8,3126.4,0.38511893]
[1732017015267,0.9853,3126.9,3126.4,3.58359893]
[1732017015587,0.9853,3126.9,3126.3,3.85111929]
[1732017015767,0.9853,3126.9,3126.5,3.19845]
[1732017015975,0.1904,3126.9,3126.5,3.19845]
[1732017016164,0.1904,3126.9,3126.7,3.19825]
[1732017016360,0.1904,3126.9,3126.8,3.517975]
[1732017017084,0.1904,3126.9,3126.8,0.319825]
[1732017017478,0.1904,3126.9,3126.8,3.517975]
[1732017017998,0.1904,3126.9,3126.8,4.16482802]
[1732017027570,0.1904,3126.9,3126.8,4.16482802]
[1732017034364,0.1904,3126.9,3126.8,3.84500302]
[1732017038774,0.1904,3126.9,3126.8,4.64630302]
[1732017042266,0.1904,3126.9,3126.8,7.64630302]
[1732017046850,0.1904,3126.9,3126.8,7.96620302]
[1732017052656,0.8326,3127.8,3127.7,3.19723]
[1732017052960,1.6297,3128.0,3127.9,3.19703]
[1732017053489,0.875,3128.0,3127.9,3.19703]
[1732017056999,1.7031,3128.0,3127.9,3.19703]
[1732017062304,0.875,3128.0,3127.9,3.19703]
[1732017068706,0.875,3128.0,3127.9,4.52108374]
[1732017069427,0.875,3128.0,3127.9,3.19703]
[1732017075045,0.7521,3127.9,3127.2,1.64395374]
[1732017075250,0.16271,3127.8,3127.4,3.19749]
[1732017075461,0.7521,3127.9,3127.5,3.19737]
[1732017075746,0.7521,3127.9,3127.2,1.64395374]
[1732017075747,0.7617,3127.7,3127.3,3.19758]
[1732017075945,0.7617,3127.7,3127.4,3.19753]
[1732017076313,0.7617,3127.7,3127.5,3.19738]
[1732017076970,0.7617,3127.7,3127.6,3.19733]
[1732017077370,0.8321,3127.9,3127.8,3.19713]
[1732017077602,0.8321,3127.9,3127.7,3.19723]
[1732017077795,0.8321,3127.9,3127.7,6.3944]
[1732017077955,0.8321,3127.9,3127.7,3.19717]
[1732017078359,0.8321,3127.9,3127.8,3.19713]
[1732017078664,0.875,3128.0,3127.9,3.19703]
[1732017081877,0.875,3128.0,3127.9,7.52108374]
[1732017085773,0.875,3128.0,3127.9,6.8448307]
[1732017089525,0.1001666,3128.1,3128.0,3.19693]
[1732017092587,0.1001666,3128.1,3127.9,0.6478007]
[1732017092786,0.8936666,3128.1,3127.9,0.6478007]
[1732017094933,0.50921126,3128.1,3127.5,3.19737]
[1732017095107,3.99651,3128.0,3127.5,3.19737]
[1732017095814,3.19704,3127.9,3127.4,3.19752]
[1732017096022,0.7995,3127.8,3127.4,3.19752]
[1732017096393,0.7995,3127.8,3127.5,3.82231212]
[1732017097184,0.7995,3127.8,3127.5,0.62489212]
[1732017097388,3.9967,3127.8,3127.5,0.62489212]
[1732017097589,0.7995,3127.6,3127.5,0.62489212]
[1732017098085,3.99683,3127.6,3127.1,3.19776]
[1732017098827,3.99683,3127.6,3127.2,0.62348586]
[1732017098828,0.7531,3127.4,3127.2,0.62348586]
[1732017099452,3.95065,3127.4,3127.2,0.62348586]
[1732017099818,0.7531,3127.4,3127.2,0.62348586]
[1732017100706,3.9507,3127.4,3127.2,0.62348586]
[1732017100908,0.8024,3127.2,3126.7,3.19819]
[1732017101133,0.8024,3127.2,3126.7,3.19818]
[1732017101645,4.00018,3127.2,3126.6,3.19831]
[1732017101801,0.8204,3127.1,3126.6,3.19831]
[1732017102008,0.7948,3127.0,3126.5,0.63731928]
[1732017102247,0.7948,3126.7,3125.9,1.18774351]
[1732017102441,1.32405374,3127.1,3126.2,3.19874]
[1732017102641,3.19811,3126.9,3126.3,3.19866]
[1732017102851,3.65032637,3126.9,3126.3,3.19866]